bitfinex/quotes_ETHUSD_20241119
["timestamp","ask_amount","ask_price","bid_price","bid_amount"]
[1731997094746,3.20379,3121.3,3121.2,0.7968]
[1731997095815,3.20348,3121.6,3121.2,0.7968]
[1731997096133,3.0,3122.1,3121.2,0.7968]
[1731997096509,3.2037,3121.4,3121.2,0.7968]
[1731997097093,3.20349,3121.6,3121.2,0.7968]
[1731997097299,3.20308,3122.0,3121.2,0.7968]
[1731997097514,3.20308,3122.0,3121.3,0.8016]
[1731997097733,3.20308,3122.0,3121.5,0.8016]
[1731997097930,3.7836,3122.5,3121.5,0.8016]
[1731997097931,3.20319,3121.9,3121.5,0.8016]
[1731997098598,3.20298,3122.1,3121.5,0.8016]
[1731997098797,0.55,3122.7,3121.5,0.8016]
[1731997099032,3.20288,3122.2,3121.5,0.8016]
[1731997099426,3.20288,3122.2,3121.6,0.7906]
[1731997099627,3.20288,3122.2,3121.7,0.399418]
[1731997099997,3.20288,3122.2,3121.8,0.7742]
[1731997101324,3.20299,3122.1,3121.8,0.7742]
[1731997101533,3.2027,3122.4,3121.8,0.7742]
[1731997101699,3.20298,3122.1,3121.8,0.7742]
[1731997101899,3.20299,3122.1,3121.8,0.7742]
[1731997102198,3.20317,3121.9,3121.8,0.7742]
[1731997104118,3.20299,3122.1,3121.8,0.7742]
[1731997105136,3.20243,3122.7,3121.8,0.7742]
[1731997105315,3.20294,3122.2,3121.8,0.7742]
[1731997105519,3.20298,3122.1,3121.8,0.7742]
[1731997105726,3.20317,3121.9,3121.8,0.7742]
[1731997108254,3.20305,3122.1,3121.8,0.7742]
[1731997108460,3.20309,3122.0,3121.8,0.7742]
[1731997108752,3.20278,3122.3,3121.8,0.7742]
[1731997108954,3.20306,3122.1,3121.8,0.7742]
[1731997109113,3.20278,3122.3,3121.8,0.7742]
[1731997109315,3.20304,3122.1,3121.8,0.7742]
[1731997109859,3.20308,3122.0,3121.8,0.7742]
[1731997110241,3.20317,3121.9,3121.8,0.7742]
[1731997111025,3.20304,3122.1,3121.8,0.7742]
[1731997111226,3.20313,3122.0,3121.8,0.7742]
[1731997112462,3.20304,3122.1,3121.6,0.7503]
[1731997112758,3.20332,3121.8,3121.6,0.7503]
[1731997113318,3.20301,3122.1,3121.6,0.7503]
[1731997114617,3.20308,3122.0,3121.6,0.7503]
[1731997114821,3.20301,3122.1,3121.6,0.7503]
[1731997115116,3.0,3122.2,3121.8,3.52281]
[1731997115345,3.0,3122.3,3121.9,0.7662]
[1731997115543,3.0,3122.3,3121.9,0.428901]
[1731997115857,3.0,3122.3,3122.0,0.7662]
[1731997116969,3.20266,3122.4,3121.4,0.7939]
[1731997117253,3.20324,3121.9,3121.4,0.7939]
[1731997118039,3.20344,3121.7,3121.4,0.7939]
[1731997118414,3.0,3122.2,3121.4,0.7939]
[1731997118750,3.20358,3121.5,3121.4,0.7939]
[1731997119913,0.7724,3121.9,3121.1,35.8972474]
[1731997120119,3.20389,3121.2,3121.1,35.1432474]
[1731997120658,3.20362,3121.5,3121.1,0.1432474]
[1731997121453,3.20367,3121.5,3121.1,0.1432474]
[1731997121633,3.20338,3121.7,3121.1,3.28424687]
[1731997121961,3.2035,3121.6,3121.2,0.8222]
[1731997122131,3.20338,3121.7,3121.2,0.8222]
[1731997124592,3.20297,3122.1,3121.2,0.8222]
[1731997124789,3.20361,3121.5,3121.2,0.8222]
[1731997126063,3.20341,3121.7,3121.2,0.8222]
[1731997126653,3.20307,3122.0,3121.2,0.8222]
[1731997126859,3.20349,3121.6,3121.2,0.8222]
[1731997127067,3.20333,3121.8,3121.2,0.8222]
[1731997127593,3.20338,3121.7,3121.2,0.8222]
[1731997128256,3.2036,3121.5,3121.2,0.8222]
[1731997128964,3.2036,3121.5,3121.1,0.1432474]
[1731997128965,3.20379,3121.3,3121.1,0.1432474]
[1731997129273,3.20389,3121.2,3121.1,0.1432474]
[1731997132062,3.98919,3121.2,3121.1,0.1432474]
[1731997133989,7.53919,3121.2,3121.1,0.1432474]
[1731997140510,3.20389,3121.2,3121.1,0.1432474]
[1731997140707,3.20389,3121.3,3121.2,0.7905]
[1731997141219,3.20377,3121.4,3121.2,0.7905]
[1731997141419,3.20359,3121.5,3121.2,0.7905]
[1731997141630,3.20371,3121.4,3121.2,0.7905]
[1731997141801,3.20359,3121.5,3121.2,0.7905]
[1731997144706,3.20379,3121.3,3121.2,0.7905]
[1731997144905,3.20389,3121.2,3121.1,0.1432474]
[1731997145827,3.0,3121.8,3121.1,0.1432474]
[1731997146029,3.20365,3121.5,3121.1,0.1432474]
[1731997146250,3.0,3121.6,3121.1,0.1432474]
[1731997146609,3.0,3121.7,3121.2,3.20388]
[1731997146800,3.20317,3121.9,3121.3,4.00298]
[1731997147616,3.20328,3121.8,3121.3,0.7992]
[1731997147811,3.20309,3122.0,3121.3,1.24730451]
[1731997148047,3.20309,3122.0,3121.5,0.808]
[1731997148815,3.20288,3122.2,3121.5,0.808]
[1731997149021,3.20288,3122.2,3121.6,0.401168]
[1731997149848,3.20297,3122.1,3121.6,0.401168]
[1731997150056,3.20239,3122.7,3122.0,0.8105]
[1731997150349,3.20194,3123.1,3122.5,3.20256]
[1731997150574,3.20194,3123.1,3122.6,0.8105]
[1731997150740,3.20155,3123.5,3122.7,3.20233]
[1731997150921,3.20155,3123.5,3122.8,0.8105]
[1731997151128,0.01,3123.6,3122.6,35.0]
[1731997151350,3.20228,3122.8,3122.6,35.0]
[1731997151671,3.20228,3122.8,3122.1,0.8216]
[1731997151889,3.20228,3122.8,3122.2,3.20285]
[1731997152229,3.0,3123.0,3122.5,3.20255]
[1731997152429,3.20215,3122.9,3122.6,0.7805]
[1731997152842,3.0,3123.2,3122.6,0.7805]
[1731997153036,3.0,3123.4,3122.6,0.7805]
[1731997153266,3.0,3123.1,3122.6,0.7805]
[1731997153641,3.0,3123.2,3122.7,3.20227]
[1731997154526,6.20159,3123.5,3122.8,0.7741]
[1731997154843,3.0,3123.2,3122.8,0.7741]
[1731997155856,3.20205,3123.0,3122.8,0.7741]
[1731997156534,6.20191,3123.2,3122.8,0.7741]
[1731997157039,3.0,3123.2,3122.8,0.7741]
[1731997157481,3.20133,3123.7,3122.8,3.97628]
[1731997157645,3.2017,3123.4,3122.8,0.7741]
[1731997157852,6.20176,3123.3,3122.8,0.7741]
[1731997159342,3.0,3123.3,3122.8,0.7741]
[1731997159573,3.0,3123.5,3122.8,0.7741]
[1731997159770,3.20188,3123.2,3122.8,0.7741]
[1731997159970,3.0,3123.3,3122.8,0.7741]
[1731997159971,3.20195,3123.1,3122.8,0.7741]
[1731997160485,6.20174,3123.3,3122.8,0.7741]
[1731997160663,3.20185,3123.2,3122.8,0.7741]
[1731997161434,6.20164,3123.4,3122.8,0.7741]
[1731997161673,3.0,3123.2,3122.8,0.7741]
[1731997162768,3.20197,3123.1,3122.8,0.7741]
[1731997162946,3.20236,3122.7,3122.5,0.7964]
[1731997163660,3.20245,3122.6,3121.9,0.759]
[1731997163860,3.20247,3122.6,3121.9,0.759]
[1731997164065,3.20257,3122.5,3121.9,0.759]
[1731997164241,3.20247,3122.6,3121.9,3.96213]
[1731997164585,3.20247,3122.6,3122.0,0.759]
[1731997164757,3.20226,3122.8,3122.1,0.759]
[1731997165081,3.20226,3122.8,3122.3,0.759]
[1731997165559,3.0,3123.2,3122.3,0.759]
[1731997165768,3.20246,3122.6,3122.3,0.759]
[1731997167339,3.20244,3122.7,3122.3,0.759]
[1731997168537,3.0,3123.2,3122.3,0.759]
[1731997168752,3.20218,3122.9,3122.3,0.759]
[1731997169078,3.20218,3122.9,3122.3,1.506741]
[1731997169465,3.20218,3122.9,3122.4,0.76]
[1731997169782,3.20194,3123.1,3122.5,1.0796]
[1731997169967,3.20206,3123.0,3122.5,1.0796]
[1731997170679,3.20223,3122.9,3122.5,1.0796]
[1731997171960,3.20194,3123.1,3122.5,1.0796]
[1731997172155,3.20194,3123.1,3122.5,1.5506321]
[1731997172555,3.20205,3123.0,3122.5,1.5506321]
[1731997173486,3.20205,3123.0,3122.5,1.0796]
[1731997177472,3.20215,3122.9,3122.5,1.0796]
[1731997177782,3.20184,3123.2,3122.6,0.7703]
[1731997177986,3.20184,3123.2,3122.7,0.7703]
[1731997178648,3.0,3123.3,3122.7,0.7703]
[1731997178856,3.20185,3123.2,3122.7,0.7703]
[1731997181877,3.20212,3123.0,3122.7,0.7703]
[1731997182207,3.20225,3122.8,3122.7,0.7703]
[1731997182381,3.20225,3122.8,3122.3,0.3196]
[1731997182577,3.20222,3122.9,3122.4,0.7913]
[1731997182776,3.20207,3123.0,3122.4,4.31353]
[1731997183304,3.20207,3123.0,3122.5,1.1109]
[1731997183615,3.20195,3123.1,3122.6,0.7913]
[1731997184339,3.0,3123.2,3122.6,0.7913]
[1731997184468,6.20186,3123.2,3122.6,4.1800027]
[1731997184664,6.20186,3123.2,3122.6,3.99375]
[1731997185813,6.20186,3123.2,3122.5,0.3196]
[1731997185814,6.20164,3123.4,3122.8,3.97076]
[1731997185980,0.33447142,3123.5,3122.9,3.919419]
[1731997186184,3.20152,3123.6,3123.0,0.8185]
[1731997186514,3.20152,3123.6,3123.0,1.1381]
[1731997187205,0.799,3124.0,3123.0,1.1381]
[1731997187429,3.20182,3123.3,3123.0,1.1381]
[1731997188117,3.20194,3123.1,3123.0,1.1381]
[1731997188609,3.20167,3123.4,3123.0,1.1381]
[1731997189125,3.20153,3123.6,3123.0,1.1381]
[1731997189272,3.20153,3123.6,3123.0,36.1381]
[1731997189470,3.20153,3123.6,3123.1,3.14099947]
[1731997189689,3.2016,3123.5,3123.1,3.14099947]
[1731997190320,3.20175,3123.3,3123.1,3.14099947]
[1731997190491,3.20175,3123.3,3123.0,36.1381]
[1731997191276,3.20187,3123.2,3123.0,36.1381]
[1731997191628,3.20232,3122.8,3122.3,1.0767]
[1731997192320,3.20232,3122.8,3122.4,35.0]
[1731997192623,6.40419,3123.0,3122.4,35.0]
[1731997192832,3.20207,3123.0,3122.5,3.14099947]
[1731997193233,3.20207,3123.0,3122.6,0.7571]
[1731997193527,3.20215,3122.9,3122.7,35.0]
[1731997194211,3.20207,3123.0,3122.7,35.0]
[1731997195028,3.20184,3123.2,3122.7,35.0]
[1731997195203,3.20197,3123.1,3122.8,3.14099947]
[1731997195405,3.20184,3123.2,3122.8,3.14099947]
[1731997196341,0.8286,3123.5,3122.8,3.14099947]
[1731997196489,3.20192,3123.2,3122.8,3.14099947]
[1731997196693,3.20192,3123.2,3122.9,3.14099947]
[1731997196918,3.20163,3123.4,3123.0,0.7857]
[1731997197602,3.20154,3123.5,3123.0,0.7857]
[1731997198308,3.20154,3123.5,3123.1,35.0]
[1731997198645,3.20154,3123.5,3123.2,3.14099947]
[1731997198831,3.20165,3123.4,3123.2,3.14099947]
[1731997199009,3.20165,3123.4,3123.1,35.0]
[1731997200594,3.20125,3123.8,3123.3,0.7898]
[1731997200796,3.20125,3123.8,3123.4,0.431117]
[1731997201224,3.20125,3123.8,3123.4,35.0]
[1731997201538,3.20133,3123.7,3123.4,35.0]
[1731997201707,3.20117,3123.9,3123.4,35.0]
[1731997202039,3.20124,3123.8,3123.4,35.0]
[1731997202339,3.20123,3123.8,3123.5,3.14099947]
[1731997203838,3.20143,3123.6,3123.5,3.14099947]
[1731997204009,3.20143,3123.6,3123.4,35.0]
[1731997204010,3.20153,3123.5,3123.4,35.0]
[1731997204729,3.20163,3123.4,3123.1,0.7513]
[1731997205098,3.20163,3123.4,3123.2,35.0]
[1731997205299,3.20163,3123.4,3123.2,38.14099947]
[1731997205515,3.2016,3123.5,3123.2,3.14099947]
[1731997205749,3.2016,3123.5,3123.1,0.7513]
[1731997205900,3.20174,3123.3,3123.1,0.7513]
[1731997206238,0.8011,3123.3,3122.6,0.78712572]
[1731997206439,3.20223,3122.9,3122.6,35.78712572]
[1731997206648,3.20223,3122.9,3122.7,0.65422421]
[1731997207407,3.20203,3123.1,3122.7,0.65422421]
[1731997207608,3.20206,3123.0,3122.7,0.65422421]
[1731997208503,0.8011,3123.3,3122.7,0.65422421]
[1731997208700,4.00247,3123.7,3122.9,0.7809]
[1731997209038,3.20133,3123.7,3123.2,0.3196]
[1731997209254,3.20102,3124.0,3123.3,0.7809]
[1731997209435,3.20102,3124.0,3123.5,0.7809]
[1731997209737,4.00189,3124.3,3123.6,0.3196]
[1731997209738,3.20091,3124.2,3123.6,0.3196]
[1731997209914,3.20092,3124.1,3123.6,0.7928361]
[1731997210110,3.20092,3124.1,3123.6,0.3196]
[1731997210312,3.20103,3124.0,3123.6,0.3196]
[1731997210712,3.20086,3124.2,3123.6,0.3196]
[1731997211507,3.20085,3124.2,3123.6,0.3196]
[1731997212102,3.20085,3124.2,3123.6,35.3196]
[1731997212306,3.20091,3124.2,3123.7,3.14099947]
[1731997212632,3.20092,3124.1,3123.7,3.14099947]
[1731997214398,3.0,3124.6,3123.6,35.3196]
[1731997214399,3.20133,3123.7,3123.6,35.3196]
[1731997214555,3.20158,3123.5,3123.1,0.3196]
[1731997214848,3.20174,3123.3,3123.1,0.3196]
[1731997215049,3.20151,3123.6,3123.2,35.0]
[1731997215251,3.20153,3123.6,3123.2,35.0]
[1731997215456,3.20174,3123.3,3123.2,35.0]
[1731997215604,3.20174,3123.3,3123.0,1.1455]
[1731997216246,3.20174,3123.3,3123.0,36.1455]
[1731997216447,3.20177,3123.3,3123.0,39.11059333]
[1731997216652,3.2017,3123.4,3123.0,39.11059333]
[1731997216950,3.20158,3123.5,3123.0,39.11059333]
[1731997217168,3.20158,3123.5,3123.1,3.14099947]
[1731997217806,0.7915,3123.8,3123.1,3.14099947]
[1731997218056,0.7915,3123.8,3123.0,36.1455]
[1731997218057,3.20182,3123.3,3123.0,36.1455]
[1731997218207,3.20192,3123.2,3123.0,36.1455]
[1731997218849,3.99695,3122.7,3122.6,0.00622572]
[1731997219054,6.99695,3122.7,3122.6,0.00622572]
[1731997222838,3.20235,3122.7,3122.6,0.00622572]
[1731997223116,3.20226,3122.8,3122.6,0.00622572]
[1731997223343,3.20235,3122.7,3122.6,0.00622572]
[1731997224014,6.20235,3122.7,3122.6,0.00622572]
[1731997224431,7.02085,3122.7,3122.6,0.00622572]
[1731997227025,3.0,3123.2,3122.6,0.00622572]
[1731997227226,3.20219,3122.9,3122.6,0.00622572]
[1731997227648,6.20207,3123.0,3122.6,0.00622572]
[1731997227816,3.0,3123.2,3122.6,0.00622572]
[1731997228015,3.20187,3123.2,3122.6,0.00622572]
[1731997228254,3.202,3123.1,3122.7,0.40078657]
[1731997228418,3.202,3123.1,3122.6,0.00622572]
[1731997228618,3.20187,3123.2,3122.6,0.00622572]
[1731997228619,3.20206,3123.0,3122.6,0.00622572]
[1731997228927,3.20187,3123.2,3122.6,0.00622572]
[1731997228928,3.20216,3122.9,3122.6,0.00622572]
[1731997230468,3.20205,3123.0,3122.6,0.32582572]
[1731997230838,3.20191,3123.2,3122.6,3.52826572]
[1731997231195,3.20191,3123.2,3122.6,3.96100229]
[1731997231343,3.20191,3123.2,3122.6,38.96100229]
[1731997231685,3.20191,3123.2,3122.7,0.7731]
[1731997231870,3.0,3123.3,3122.7,0.7731]
[1731997232045,3.20174,3123.3,3122.8,3.14099947]
[1731997232246,6.20235,3122.7,3122.6,35.00622572]
[1731997233140,0.8161,3123.3,3122.6,0.00622572]
[1731997233553,3.20232,3122.8,3122.6,0.00622572]
[1731997235156,3.20235,3122.7,3122.6,0.00622572]
[1731997235484,3.20232,3122.8,3122.6,0.00622572]
[1731997236073,3.0,3122.9,3122.6,0.00622572]
[1731997236389,3.20227,3122.8,3122.6,0.00622572]
[1731997238384,3.20235,3122.7,3122.6,0.00622572]
[1731997241708,0.7549,3122.8,3122.6,0.00622572]
[1731997241709,3.20225,3122.8,3122.6,0.00622572]
[1731997242273,3.20225,3122.8,3122.6,0.77312572]
[1731997242615,3.20217,3122.9,3122.6,0.77312572]
[1731997242819,3.20198,3123.1,3122.6,0.77312572]
[1731997243020,3.20141,3123.7,3122.6,0.00622572]
[1731997243021,0.7549,3122.9,3122.6,0.00622572]
[1731997243177,6.20207,3123.0,3122.6,0.00622572]
[1731997243673,3.7549,3123.1,3122.6,0.00622572]
[1731997243883,3.20215,3122.9,3122.6,0.00622572]
[1731997245025,3.20225,3122.8,3122.6,0.00622572]
[1731997245196,3.20235,3122.7,3122.6,0.00622572]
[1731997245402,6.20235,3122.7,3122.6,0.00622572]
[1731997245610,3.20198,3123.1,3122.7,0.7502]
[1731997245916,3.97302,3122.8,3122.6,0.00622572]
[1731997246131,3.97296,3122.8,3122.6,0.00622572]
[1731997246285,3.20226,3122.8,3122.6,0.00622572]
[1731997246483,6.97305,3122.7,3122.6,0.00622572]
[1731997249572,7.54305,3122.7,3122.6,5.72e-06]
[1731997249851,7.85996688,3122.7,3122.6,5.72e-06]
[1731997253223,10.9738766,3122.7,3122.6,5.72e-06]
[1731997253409,11.99849406,3122.7,3122.6,5.72e-06]
[1731997253614,3.20389,3121.2,3121.1,35.1432474]
[1731997253811,3.20389,3121.2,3121.1,0.1432474]
[1731997256770,6.20389,3121.2,3121.1,0.1432474]
[1731997261278,6.75389,3121.2,3121.1,0.1432474]
[1731997262331,7.58269,3121.2,3121.1,0.1432474]
[1731997265360,7.59269,3121.2,3121.1,0.1432474]
[1731997265590,10.70659972,3121.2,3121.1,0.1432474]
[1731997265792,10.70659972,3121.2,3121.1,7.4e-06]
[1731997265989,10.71659972,3121.2,3121.1,7.4e-06]
[1731997266207,7.60269,3121.2,3121.1,7.4e-06]
[1731997266383,7.91960688,3121.2,3121.1,7.4e-06]
[1731997266952,8.5530142,3121.2,3121.1,7.4e-06]
[1731997268056,3.20553,3119.6,3119.5,0.8069]
[1731997268882,3.20542,3119.8,3119.5,0.8069]
[1731997269072,3.21446,3120.7,3119.5,0.8069]
[1731997269073,3.0,3119.9,3119.5,0.8069]
[1731997269407,3.20536,3119.8,3119.5,0.8069]
[1731997270661,3.20553,3119.6,3119.5,0.8069]
[1731997270937,3.0,3119.9,3119.5,0.8069]
[1731997271217,6.20527,3119.9,3119.5,0.8069]
[1731997271376,3.20537,3119.8,3119.5,0.8069]
[1731997271805,0.7795,3121.0,3119.9,0.8012]
[1731997272089,3.20479,3120.4,3119.9,0.8012]
[1731997272409,3.20493,3120.2,3120.0,0.8012]
[1731997272780,3.20502,3120.1,3120.0,0.8012]
[1731997276380,3.20502,3120.1,3120.0,1.1208]
[1731997277125,3.20502,3120.1,3119.7,0.3196]
[1731997277126,3.20533,3119.8,3119.7,0.3196]
[1731997278182,3.20543,3119.7,3119.5,0.3196]
[1731997280038,3.20564,3119.5,3119.2,0.3196]
[1731997280342,3.20605,3119.1,3119.0,0.8308]
[1731997281314,3.20605,3119.1,3118.1,6.59388808]
[1731997281315,3.20709,3118.1,3117.9,0.1432474]
[1731997281540,3.20718,3118.0,3117.9,0.1432474]
[1731997281698,3.20718,3118.0,3117.9,35.1432474]
[1731997282308,6.20718,3118.0,3117.9,0.1432474]
[1731997282607,3.20718,3118.0,3117.9,0.1432474]
[1731997283100,3.20687,3118.3,3117.9,0.1432474]
[1731997283449,6.32021972,3118.9,3117.9,0.1432474]
[1731997283450,3.20642,3118.8,3118.0,0.8308]
[1731997283631,3.0,3118.9,3118.1,3.52737]
[1731997283795,6.20633,3118.9,3118.2,3.642777]
[1731997284001,3.20637,3118.8,3118.2,0.435817]
[1731997284239,3.0,3118.9,3118.3,3.5711587]
[1731997284439,3.0,3118.9,3118.3,0.3642887]
[1731997284657,3.20598,3119.2,3118.6,0.8308]
[1731997284803,3.20598,3119.2,3118.7,0.403746]
[1731997285312,3.20545,3119.7,3118.7,3.610126]
[1731997285713,0.8283,3119.8,3119.0,3.20608]
[1731997285714,4.03366,3119.8,3119.0,3.20608]
[1731997285937,3.20536,3119.8,3119.2,0.8101]
[1731997286736,4.01195,3120.1,3119.3,3.20583]
[1731997286942,3.20513,3120.0,3119.3,3.20583]
[1731997287109,3.20513,3120.0,3119.4,0.401593]
[1731997287308,3.20474,3120.4,3119.6,3.20545]
[1731997287511,3.20474,3120.4,3119.7,0.76]
[1731997287814,3.20443,3120.7,3119.8,3.20532]
[1731997288150,3.20434,3120.8,3120.1,3.20501]
[1731997288520,3.20443,3120.7,3119.9,3.20521]
[1731997288717,3.20443,3120.7,3119.9,38.954302]
[1731997289157,3.20422,3120.9,3120.1,3.20494]
[1731997289319,3.20422,3120.9,3120.2,0.8133]
[1731997289649,3.74859019,3121.1,3120.3,3.2048]
[1731997289877,3.20412,3121.0,3120.3,3.2048]
[1731997290086,3.20412,3121.0,3120.3,3.5251]
[1731997290288,0.63468047,3121.1,3120.5,3.2046]
[1731997290445,3.53843675,3121.2,3120.5,3.2046]
[1731997290446,0.33454675,3121.2,3120.7,3.2044]
[1731997290643,3.2038,3121.3,3120.6,3.2045]
[1731997290844,3.2038,3121.3,3120.7,0.32045]
[1731997291071,3.2038,3121.3,3120.6,3.2045]
[1731997291289,3.20359,3121.5,3120.0,0.8252]
[1731997291596,3.20441,3120.7,3120.6,0.8252]
[1731997292080,3.20487,3120.3,3120.1,0.8252]
[1731997292283,3.97198,3120.9,3120.1,0.8252]
[1731997292284,3.20466,3120.5,3120.1,3.96619947]
[1731997292455,3.20457,3120.6,3120.1,0.8252]
[1731997293253,3.20475,3120.4,3120.1,0.8252]
[1731997294628,3.20457,3120.6,3120.1,0.8252]
[1731997294834,3.20474,3120.4,3120.1,0.8252]
[1731997299226,3.20485,3120.3,3120.1,0.8252]
[1731997299395,3.20475,3120.4,3120.1,0.8252]
[1731997301038,3.0,3120.6,3120.1,0.8252]
[1731997301204,3.0,3120.6,3120.1,1.228231]
[1731997301731,3.20462,3120.5,3120.1,1.228231]
[1731997301909,3.20462,3120.5,3120.1,0.8252]
[1731997302115,3.20472,3120.4,3120.1,0.8252]
[1731997302705,3.0,3121.2,3120.1,0.8252]
[1731997302913,3.20478,3120.4,3120.1,0.8252]
[1731997303597,3.20492,3120.2,3120.1,0.8252]
[1731997304107,3.20492,3120.2,3119.5,4.00702]
[1731997304311,3.20492,3120.2,3119.6,0.400702]
[1731997304899,3.20492,3120.2,3119.6,3.606232]
[1731997305123,3.20502,3120.1,3119.6,0.400702]
[1731997305392,3.205,3120.2,3119.5,0.8014]
[1731997305610,3.20504,3120.1,3119.5,1.203113]
[1731997305809,3.0,3120.6,3119.5,1.203113]
[1731997306032,3.20459,3120.6,3119.9,4.00021]
[1731997306336,3.20481,3120.4,3119.9,1.515549]
[1731997306500,3.20481,3120.4,3119.9,0.795]
[1731997311712,6.40911,3120.6,3119.9,0.795]
[1731997311950,6.40911,3120.6,3119.9,1.195033]
[1731997312256,3.20468,3120.5,3119.9,1.195033]
[1731997312657,3.20453,3120.6,3119.9,1.195033]
[1731997312985,3.20484,3120.3,3119.9,0.795]
[1731997313344,3.20461,3120.5,3119.9,0.795]
[1731997313570,3.20482,3120.3,3119.9,0.795]
[1731997314283,3.20512,3120.0,3119.9,0.795]
[1731997314581,3.20494,3120.2,3119.9,0.795]
[1731997314744,3.20512,3120.0,3119.9,0.795]
[1731997316447,3.20532,3119.9,3119.6,0.7805]
[1731997317250,3.20512,3120.0,3119.6,0.7805]
[1731997319006,3.20492,3120.2,3119.6,0.7805]
[1731997319186,3.20502,3120.1,3119.6,0.7805]
[1731997319694,3.20502,3120.1,3119.6,1.179105]
[1731997319918,3.20482,3120.3,3119.6,1.179105]
[1731997320125,3.20482,3120.3,3119.6,4.384635]
[1731997320278,3.20482,3120.3,3119.7,3.20542]
[1731997321016,3.20482,3120.3,3119.7,3.20543]
[1731997321324,3.20493,3120.2,3119.8,0.4384535]
[1731997321495,3.20493,3120.2,3119.6,4.384635]
[1731997321697,3.20493,3120.2,3119.6,3.98603]
[1731997322779,3.20513,3120.0,3119.6,0.7805]
[1731997323716,6.40992,3120.2,3119.6,0.7805]
[1731997323920,3.20503,3120.1,3119.6,1.179123]
[1731997324090,3.20525,3119.9,3119.6,0.7805]
[1731997324792,3.20543,3119.7,3119.1,0.8058]
[1731997324995,3.20525,3119.9,3119.1,1.239018]
[1731997325316,3.20536,3119.8,3119.2,3.2059]
[1731997325618,0.8304,3120.1,3119.3,3.20581]
[1731997325619,3.20505,3120.1,3119.3,3.20581]
[1731997325792,3.2052,3120.0,3119.4,0.8058]
[1731997326319,3.20525,3119.9,3119.4,0.8058]
[1731997327320,3.20478,3120.4,3119.4,0.8058]
[1731997327533,3.2053,3119.9,3119.4,0.8058]
[1731997328225,3.20533,3119.8,3119.4,0.8058]
[1731997328786,3.20505,3120.1,3119.4,0.8058]
[1731997329218,3.20505,3120.1,3119.5,3.20563]
[1731997329803,0.8304,3120.5,3119.4,0.8058]
[1731997330016,3.2053,3119.9,3119.4,0.8058]
[1731997330428,3.20516,3120.0,3119.4,4.01147]
[1731997330626,0.8304,3120.5,3119.4,4.01147]
[1731997330627,3.20493,3120.2,3119.5,3.20562]
[1731997330829,3.20473,3120.4,3119.7,0.7764]
[1731997331033,3.20473,3120.4,3119.8,0.398191]
[1731997331342,3.20483,3120.3,3119.7,0.7764]
[1731997331705,3.20483,3120.3,3119.7,3.98182]
[1731997332314,6.20455,3120.6,3119.7,0.7764]
[1731997332315,3.0,3120.6,3119.7,0.7764]
[1731997332524,3.0,3120.7,3120.1,0.8168]
[1731997332817,3.20458,3120.6,3120.1,0.8168]
[1731997335285,3.20479,3120.4,3120.1,0.8168]
[1731997336630,3.20483,3120.3,3120.1,0.8168]
[1731997336835,3.20479,3120.4,3120.1,0.8168]
[1731997337371,3.20483,3120.3,3120.1,0.8168]
[1731997337727,3.20479,3120.4,3120.1,0.8168]
[1731997338169,3.20453,3120.6,3120.1,0.8168]
[1731997338703,3.20491,3120.3,3120.1,0.8168]
[1731997339772,3.20492,3120.2,3120.1,0.8168]
[1731997340090,3.20522,3120.0,3119.6,0.7532]
[1731997341169,3.20494,3120.2,3119.7,0.3203]
[1731997341170,3.20505,3120.1,3119.7,0.3203]
[1731997342769,3.20475,3120.4,3119.8,35.0]
[1731997343075,3.20489,3120.3,3119.8,35.0]
[1731997343279,3.20489,3120.3,3119.9,0.8317]
[1731997344755,3.20573,3119.5,3118.7,3.20643]
[1731997344966,3.20593,3119.3,3118.6,3.97986]
[1731997345273,3.20593,3119.3,3118.8,35.0]
[1731997345454,3.20607,3119.1,3118.9,2.93223763]
[1731997345866,3.20537,3119.8,3118.9,2.93223763]
[1731997346165,3.20588,3119.3,3118.8,35.0]
[1731997346383,3.20597,3119.2,3118.8,35.0]
[1731997347249,3.20566,3119.5,3118.8,35.0]
[1731997347452,3.20575,3119.4,3118.8,38.20627]
[1731997347643,3.20575,3119.4,3118.9,3.14099947]
[1731997348037,3.20588,3119.3,3118.9,3.14099947]
[1731997348243,3.20596,3119.2,3118.9,3.14099947]
[1731997348445,3.20596,3119.2,3118.8,35.0]
[1731997348751,3.20596,3119.2,3118.6,1.0936]
[1731997349798,3.20594,3119.3,3118.6,4.30006]
[1731997350078,3.20578,3119.4,3118.7,3.956746]
[1731997350277,3.20592,3119.3,3118.7,3.956746]
[1731997351181,3.20578,3119.4,3118.7,0.750306]
[1731997351386,3.20595,3119.2,3118.7,0.3203]
[1731997353239,3.20578,3119.4,3118.7,3.52674]
[1731997353640,3.20585,3119.3,3118.7,38.52674]
[1731997353885,3.20585,3119.3,3118.7,39.18406797]
[1731997354267,3.20546,3119.7,3119.0,0.8244]
[1731997354463,3.20546,3119.7,3119.0,4.03053]
[1731997354680,3.20546,3119.7,3119.1,0.723671]
[1731997355439,3.20526,3119.9,3119.1,1.043971]
[1731997355671,3.53968044,3120.1,3119.4,4.01193]
[1731997355843,3.20504,3120.1,3119.4,39.01193]
[1731997356058,3.20504,3120.1,3119.4,42.15292947]
[1731997356696,3.20504,3120.1,3119.5,3.20561]
[1731997357512,3.20504,3120.1,3119.6,35.8252]
[1731997359069,3.20484,3120.3,3119.6,35.8252]
[1731997359255,3.20492,3120.2,3119.6,35.8252]